bitfinex/quotes_ETHUSD_20251124
["timestamp","ask_amount","ask_price","bid_price","bid_amount"]
[1763953247698,0.9501,2847.2,2847.1,3.83634589]
[1763953248054,0.9501,2847.2,2847.1,0.324]
[1763953248254,0.9501,2847.2,2847.1,4.48743879]
[1763953248691,0.4853,2847.2,2847.1,4.48743879]
[1763953249361,0.04387812,2848.8,2847.9,0.1]
[1763953249682,0.1913,2849.0,2847.9,0.324]
[1763953249883,0.6764,2848.0,2847.9,0.324]
[1763953250099,1.1412,2848.0,2847.9,0.324]
[1763953250307,1.1412,2848.0,2847.9,4.21890524]
[1763953250512,0.6764,2848.0,2847.9,4.21890524]
[1763953250713,1.1412,2848.0,2847.9,0.324]
[1763953251574,1.1412,2848.0,2847.9,0.224]
[1763953251773,1.1412,2848.0,2847.9,0.324]
[1763953252164,1.1412,2848.0,2847.9,3.83535924]
[1763953252770,1.1412,2848.0,2847.9,0.324]
[1763953253103,0.4648,2848.3,2847.9,4.2189179]
[1763953253410,0.4853,2848.0,2847.9,0.1]
[1763953253777,0.4853,2848.0,2846.4,3.51317213]
[1763953253778,0.9501,2848.0,2847.6,0.1]
[1763953253961,0.1913,2847.9,2847.6,0.1]
[1763953254164,0.4853,2847.7,2847.6,0.1]
[1763953254676,0.9501,2847.7,2847.6,0.1]
[1763953255209,0.9501,2847.7,2847.5,0.1]
[1763953255405,0.4648,2847.6,2847.5,0.1]
[1763953255561,0.9501,2847.6,2847.5,0.1]
[1763953260139,0.94518418,2847.6,2847.5,0.1]
[1763953260439,0.94518418,2847.6,2847.5,0.324]
[1763953261440,0.94518418,2847.6,2847.5,0.1]
[1763953261604,0.94518418,2847.6,2847.5,0.324]
[1763953261802,0.94518418,2847.6,2846.5,0.90699264]
[1763953262007,0.4648,2847.5,2847.3,0.1]
[1763953262560,0.4853,2847.4,2847.3,0.1]
[1763953262887,0.9501,2847.4,2847.3,0.1]
[1763953263338,0.9501,2847.4,2847.1,0.1]
[1763953263564,0.9501,2847.4,2846.1,0.1049]
[1763953263565,0.6766,2846.7,2846.1,3.51353264]
[1763953263880,0.6766,2846.7,2846.6,0.1]
[1763953264032,1.1414,2846.7,2846.6,0.1]
[1763953265959,1.1414,2846.7,2845.8,0.1]
[1763953266161,0.4648,2846.6,2845.8,0.1]
[1763953266334,0.6766,2845.9,2845.8,0.1]
[1763953266743,1.1617,2845.9,2845.8,0.1]
[1763953267263,1.1617,2845.9,2844.4,0.3317]
[1763953267462,0.4625,2845.6,2845.5,0.1]
[1763953267867,0.9476,2845.6,2845.5,0.1]
[1763953268326,0.1913,2845.9,2845.5,0.1]
[1763953268526,0.6764,2845.9,2845.8,0.1]
[1763953269042,0.1913,2846.7,2845.2,7.25331852]
[1763953269043,0.4851,2846.4,2846.3,0.1]
[1763953269241,0.1913,2846.7,2846.3,0.1]
[1763953269444,0.4625,2846.4,2846.3,0.1]
[1763953269832,0.9476,2846.4,2846.3,0.1]
[1763953270042,0.1913,2847.0,2846.0,0.224]
[1763953270242,0.4851,2846.9,2846.8,0.1]
[1763953270726,0.9476,2846.9,2846.8,0.1]
[1763953270937,0.9476,2846.9,2846.5,0.1]
[1763953271142,0.4851,2846.8,2846.3,0.224]
[1763953271380,0.4851,2846.8,2845.4,7.02888872]
[1763953271543,0.4851,2846.8,2846.2,0.1]
[1763953271544,0.4625,2846.3,2846.2,0.1]
[1763953271977,0.9476,2846.3,2845.8,0.224]
[1763953272350,0.1913,2847.0,2845.8,0.324]
[1763953272351,0.6579,2845.9,2845.8,0.324]
[1763953272873,0.4851,2846.4,2845.8,0.224]
[1763953273041,0.4851,2846.9,2846.4,0.1]
[1763953273542,0.4851,2846.9,2846.4,0.224]
[1763953273773,0.4851,2846.9,2846.8,0.1]
[1763953273959,0.9476,2846.9,2846.8,0.1]
[1763953274475,0.9476,2846.9,2846.6,0.1]
[1763953274652,0.1913,2847.0,2846.6,0.1]
[1763953274653,0.4851,2846.8,2846.6,0.1]
[1763953274856,0.4851,2846.8,2846.4,0.224]
[1763953274857,0.4851,2846.8,2846.7,0.1]
[1763953275276,0.4625,2846.8,2846.7,0.1]
[1763953275981,0.9476,2846.8,2846.7,0.1]
[1763953276186,0.9476,2846.8,2845.5,7.0286417]
[1763953276368,0.4851,2846.7,2846.3,0.1]
[1763953276898,0.4625,2846.4,2846.3,0.1]
[1763953277395,0.9476,2846.4,2846.3,0.1]
[1763953278394,0.9476,2846.4,2846.0,0.1]
[1763953278551,0.52901666,2846.3,2846.0,0.1]
[1763953278751,0.4625,2846.1,2846.0,0.1]
[1763953279379,0.4851,2846.3,2846.2,0.1]
[1763953279897,0.9476,2846.3,2846.2,0.1]
[1763953280089,0.9476,2846.3,2845.9,0.224]
[1763953280387,0.4851,2846.2,2845.6,3.51414068]
[1763953280700,0.4625,2846.0,2845.9,0.1]
[1763953281067,0.9476,2846.0,2845.3,3.51456515]
[1763953281272,0.4851,2846.0,2845.9,0.1]
[1763953281683,0.9476,2846.0,2845.9,0.1]
[1763953283894,0.1913,2847.0,2845.7,0.224]
[1763953284097,0.4851,2846.3,2845.9,0.1]
[1763953284300,0.4851,2846.3,2846.0,0.1]
[1763953284683,0.4625,2846.1,2846.0,0.1]
[1763953285093,0.9476,2846.1,2846.0,0.1]
[1763953286231,0.4625,2846.1,2846.0,0.1]
[1763953286521,0.9476,2846.1,2846.0,0.1]
[1763953287097,0.4851,2846.5,2845.9,0.001]
[1763953287303,0.4851,2846.5,2846.4,0.1]
[1763953287505,0.1913,2847.0,2846.4,0.1]
[1763953287705,0.1913,2847.0,2846.8,0.1]
[1763953287706,0.6764,2847.0,2846.8,0.1]
[1763953288088,0.9476,2846.9,2846.8,0.1]
[1763953288512,0.1913,2847.0,2846.8,0.1]
[1763953288698,0.1913,2847.0,2846.9,0.1]
[1763953289023,1.1389,2847.0,2846.9,0.1]
[1763953289319,0.4851,2847.3,2846.7,0.224]
[1763953289520,0.4851,2847.3,2847.1,0.1]
[1763953289709,0.4851,2847.3,2846.7,0.324]
[1763953289710,0.1954,2846.8,2846.7,0.324]
[1763953290236,1.143,2846.8,2846.7,0.1]
[1763953290939,0.4851,2847.2,2846.4,3.51318241]
[1763953291103,0.4851,2847.2,2846.4,7.75145434]
[1763953291299,0.6579,2846.5,2846.4,0.72506227]
[1763953291641,0.1954,2846.5,2846.1,0.1]
[1763953291805,0.4851,2847.5,2846.4,0.3317]
[1763953292003,0.04389969,2847.4,2847.0,0.1]
[1763953292213,0.1913,2847.9,2847.4,0.4317]
[1763953292534,0.1913,2847.9,2847.1,0.224]
[1763953292535,0.6764,2847.9,2847.6,0.1]
[1763953292756,0.6764,2847.9,2847.8,0.1]
[1763953293105,1.1389,2847.9,2847.8,0.1]
[1763953294025,1.1389,2847.9,2846.3,3.61820531]
[1763953294232,0.4625,2847.3,2846.9,0.1]
[1763953294406,0.4625,2847.3,2847.1,0.1]
[1763953294833,0.9476,2847.3,2847.2,0.1]
[1763953295143,0.4851,2847.3,2847.2,0.1]
[1763953295442,0.9476,2847.3,2847.2,0.1]
[1763953295939,0.1913,2847.9,2847.2,0.1]
[1763953296237,0.4851,2847.8,2847.5,0.1]
[1763953296642,0.4945,2847.6,2847.5,0.1]
[1763953296839,0.4945,2847.6,2846.8,0.224]
[1763953297020,0.4758,2847.5,2847.2,0.1]
[1763953297222,0.4758,2847.5,2846.9,0.224]
[1763953297428,0.4758,2847.5,2847.4,0.1]
[1763953297630,0.4758,2847.5,2846.9,0.1]
[1763953297631,0.4945,2847.0,2846.9,0.1]
[1763953299149,0.9703,2847.0,2846.9,0.1]
[1763953299953,0.9703,2847.0,2845.1,5.9446177]
[1763953300151,0.4658,2846.7,2846.3,0.1]
[1763953300633,0.4945,2846.4,2846.3,0.1]
[1763953300822,0.4945,2846.4,2845.9,0.101]
[1763953301019,0.4693,2846.0,2845.9,0.101]
[1763953301955,0.4758,2846.3,2845.9,0.101]
[1763953301956,0.4758,2846.3,2846.1,0.1]
[1763953302358,0.4945,2846.2,2846.1,0.1]
[1763953302533,0.4945,2846.2,2845.9,0.001]
[1763953302732,0.4693,2846.0,2845.9,0.001]
[1763953303139,0.9451,2846.0,2845.9,0.001]
[1763953304250,0.9451,2846.0,2845.9,0.101]
[1763953306079,0.4693,2846.0,2845.9,0.101]
[1763953306449,0.1919,2846.9,2846.2,0.1]
[1763953306649,0.4956,2846.5,2846.3,0.1]
[1763953307064,0.4711,2846.4,2846.3,0.1]
[1763953307547,0.6875,2846.9,2846.1,0.1049]
[1763953307852,0.6875,2846.9,2845.9,3.5148257]
[1763953308166,0.4956,2846.8,2846.5,0.1]
[1763953308562,0.4956,2846.8,2846.1,0.1049]
[1763953308780,0.4956,2846.8,2846.7,0.1]
[1763953309077,0.4956,2846.8,2845.9,3.84650775]
[1763953309078,0.4711,2846.2,2845.9,0.101]
[1763953309375,0.4956,2846.8,2846.5,0.1]
[1763953309780,0.4711,2846.6,2846.5,0.1]
[1763953310479,0.9667,2846.6,2846.4,0.1]
[1763953310871,0.4676,2846.6,2846.5,0.1]
[1763953311178,0.4676,2846.6,2846.1,0.1049]
[1763953311179,0.6875,2846.9,2846.7,0.1]
[1763953311478,0.90899264,2847.6,2846.7,0.1]
[1763953311479,0.4976,2847.6,2846.7,0.1]
[1763953311643,1.17736,2847.5,2847.0,0.1]
[1763953311845,1.17736,2847.5,2847.1,0.1]
[1763953312042,0.4956,2847.4,2847.1,0.1]
[1763953312272,0.4711,2847.2,2847.1,0.1]
[1763953312906,0.9667,2847.2,2847.1,0.1]
[1763953313368,0.4956,2847.5,2846.7,0.224]
[1763953313565,0.4956,2847.5,2847.4,0.1]
[1763953313875,0.002,2847.6,2847.5,0.1]
[1763953315184,0.9687,2847.6,2847.3,0.1]
[1763953315379,0.002,2847.6,2847.3,0.1]
[1763953315994,0.002,2847.6,2847.2,0.1]
[1763953316195,0.002,2847.6,2847.5,0.4352]
[1763953317199,0.002,2847.6,2847.5,4.0710525]
[1763953317363,0.002,2847.6,2847.5,2.1004948]
[1763953317563,0.002,2847.6,2847.5,5.6123473]
[1763953317768,0.002,2847.6,2847.5,4.70535466]
[1763953317996,0.002,2847.6,2847.5,4.92935466]
[1763953318394,0.002,2847.6,2847.5,1.41750216]
[1763953318699,0.002,2847.6,2847.5,4.92935466]
[1763953318895,0.002,2847.6,2847.5,1.41750216]
[1763953319199,0.002,2847.6,2847.5,4.92935466]
[1763953319496,0.002,2847.6,2847.5,1.41750216]
[1763953319682,0.002,2847.6,2847.5,0.6592]
[1763953319912,0.002,2847.6,2847.5,0.1]
[1763953320220,0.002,2847.6,2847.5,0.7704]
[1763953320389,0.002,2847.6,2847.5,0.9944]
[1763953320593,0.002,2847.6,2847.5,0.6592]
[1763953320796,0.002,2847.6,2847.5,1.23705546]
[1763953320994,0.4731,2847.6,2847.5,0.1]
[1763953321203,0.9687,2847.6,2847.5,0.1]
[1763953321613,0.9687,2847.6,2847.1,0.1]
[1763953321793,0.4956,2847.5,2847.1,0.1]
[1763953322124,0.4956,2847.5,2846.7,0.224]
[1763953322304,0.4956,2847.5,2847.4,0.1]
[1763953322499,0.9667,2847.5,2847.4,0.1]
[1763953322926,0.9667,2847.5,2846.5,0.001]
[1763953323226,0.9667,2847.5,2847.4,0.1]
[1763953323928,0.9667,2847.5,2846.8,0.224]
[1763953323929,0.9667,2847.5,2846.5,0.001]
[1763953324121,0.4711,2846.9,2846.7,0.1]
[1763953324626,1.155,2846.8,2846.7,0.1]
[1763953325032,1.155,2846.8,2846.5,0.001]
[1763953325204,0.4711,2846.6,2846.5,0.001]
[1763953325405,0.4711,2846.6,2846.5,0.101]
[1763953325707,0.9667,2846.6,2846.5,0.001]
[1763953325893,0.9667,2846.6,2846.5,0.101]
[1763953328044,0.9667,2846.6,2846.5,0.001]
[1763953328248,0.4658,2847.4,2846.5,0.3362]
[1763953328426,0.4658,2847.4,2847.1,0.1]
[1763953329051,0.4667,2847.2,2847.1,0.1]
[1763953329216,0.4667,2847.2,2847.0,0.1]
[1763953329417,0.9325,2847.2,2847.0,0.1]
[1763953329616,0.002,2847.6,2846.5,3.7380768]
[1763953329617,0.4678,2847.6,2847.4,0.1]
[1763953329846,0.4667,2847.5,2847.4,0.1]
[1763953330219,0.4667,2847.5,2847.0,0.1]
[1763953330220,0.97639815,2847.5,2847.0,0.1]
[1763953330550,0.9325,2847.5,2847.0,0.1]
[1763953330714,0.002,2847.6,2847.1,0.1]
[1763953330915,0.002,2847.6,2847.5,0.3352]
[1763953331196,0.002,2847.6,2847.5,0.4352]
[1763953331476,0.4687,2847.6,2847.5,0.1]
[1763953331676,0.4687,2847.6,2847.4,0.1]
[1763953332054,0.4667,2847.5,2847.4,0.1]
[1763953332250,0.002,2847.6,2847.4,0.1]
[1763953332455,0.002,2847.6,2847.5,0.4352]
[1763953332870,0.4687,2847.6,2847.5,0.1]
[1763953333185,0.002,2847.6,2847.5,0.1]
[1763953334441,0.9345,2847.6,2847.2,0.1]
[1763953334642,0.4667,2847.3,2847.2,0.1]
[1763953334843,0.9325,2847.3,2847.2,0.1]
[1763953335275,0.9325,2847.3,2846.9,0.1]
[1763953335484,0.97640278,2847.2,2846.9,0.1]
[1763953335680,0.4667,2847.0,2846.5,0.001]
[1763953335848,0.5094,2846.6,2846.5,0.001]
[1763953336277,0.9752,2846.6,2846.5,0.001]
[1763953336587,0.9752,2846.6,2846.3,0.001]
[1763953336889,0.4667,2846.4,2846.3,0.001]
[1763953337249,0.9325,2846.4,2846.3,0.001]
[1763953338181,0.4658,2846.7,2846.3,0.001]
[1763953338476,0.4667,2846.4,2846.3,0.001]
[1763953338889,0.9325,2846.4,2846.3,0.001]
[1763953339585,0.1943,2846.9,2846.3,0.001]
[1763953339586,0.4658,2846.8,2846.3,0.001]
[1763953339888,0.4658,2846.8,2846.4,0.1]
[1763953340675,0.1943,2846.9,2846.4,0.1]
[1763953340987,0.4658,2846.8,2846.4,0.1]
[1763953341161,0.4658,2846.8,2846.7,0.1]
[1763953341587,0.9325,2846.8,2846.7,0.1]
[1763953341890,0.9325,2846.8,2846.3,0.001]
[1763953342189,0.4667,2846.4,2846.3,0.001]
[1763953342685,0.9325,2846.4,2846.3,0.001]
[1763953343256,0.1963,2846.9,2846.3,0.001]
[1763953343257,0.4658,2846.8,2846.3,0.001]
[1763953343470,0.002,2846.9,2846.8,0.1]
[1763953343665,0.002,2846.9,2846.8,0.4362]
[1763953344289,0.002,2846.9,2846.8,4.28511603]
[1763953344494,0.002,2846.9,2846.8,5.06491077]
[1763953344857,0.002,2846.9,2846.8,1.55219474]
[1763953345053,0.002,2846.9,2846.8,0.87979474]
[1763953345253,0.663,2846.9,2846.3,0.001]
[1763953345504,1.1288,2846.9,2846.7,0.1]
[1763953345793,1.1288,2846.9,2846.4,0.1]
[1763953345794,0.4658,2846.8,2846.4,0.1]
[1763953346574,0.4658,2846.8,2846.5,0.1]
[1763953347075,0.4667,2846.6,2846.5,0.1]
[1763953347873,0.9325,2846.6,2846.5,0.1]
[1763953348278,0.9325,2846.6,2846.3,0.001]
[1763953348505,0.4667,2846.4,2846.3,0.001]
[1763953348888,0.9325,2846.4,2846.3,0.001]
[1763953349440,0.18394926,2846.5,2846.3,0.001]
[1763953349721,0.4658,2846.5,2846.3,0.001]
[1763953349955,0.225,2846.8,2846.3,0.001]
[1763953350077,0.6908,2846.8,2846.3,0.001]
[1763953350277,0.4658,2846.8,2846.5,0.1]
[1763953350513,0.1963,2846.9,2846.5,0.1]
[1763953350675,0.4667,2846.6,2846.3,0.101]
[1763953351212,0.1963,2846.9,2846.6,0.1]
[1763953351393,0.1963,2846.9,2846.3,0.001]
[1763953351704,0.002,2846.9,2846.8,0.1]
[1763953353595,0.002,2846.9,2846.3,0.3372]
[1763953353596,1.1288,2846.9,2846.5,0.1]
[1763953353982,0.4667,2846.6,2846.3,0.001]
[1763953354297,0.4658,2846.8,2846.3,0.001]
[1763953354298,0.4667,2846.4,2846.3,0.001]
[1763953354499,0.002,2846.9,2846.3,0.001]
[1763953354736,0.002,2846.9,2846.7,0.1]
[1763953354737,0.1963,2846.9,2846.7,0.1]
[1763953355031,0.4658,2846.8,2846.5,0.1]
[1763953355231,0.4658,2846.8,2846.4,0.1]
[1763953355783,0.4667,2846.5,2846.3,0.001]
[1763953355983,0.9325,2846.5,2846.3,0.001]
[1763953356407,0.97641512,2846.4,2846.3,0.001]
[1763953356920,0.9325,2846.4,2846.3,0.001]
[1763953358042,0.95090159,2846.8,2846.3,0.001]
[1763953358243,0.4888,2846.4,2846.3,0.001]
[1763953358645,0.9558,2846.4,2846.3,0.001]
[1763953359032,0.467,2846.8,2846.4,0.1]
[1763953359428,0.4888,2846.5,2846.3,0.001]
[1763953359771,0.9478,2846.4,2846.3,0.001]
[1763953359935,0.467,2846.8,2846.3,0.001]
[1763953360264,0.467,2846.8,2846.4,0.1]
[1763953360582,0.002,2846.5,2846.4,0.1]
[1763953363739,0.002,2846.5,2846.4,0.4362]
[1763953363924,0.002,2846.5,2846.4,1.16746496]
[1763953364147,0.002,2846.5,2846.4,4.68067462]
[1763953365163,0.002,2846.5,2846.4,7.22314762]
[1763953365462,0.002,2846.5,2846.4,4.68067462]
[1763953366019,0.002,2846.5,2846.4,4.34447462]
[1763953366268,0.002,2846.5,2846.4,4.90567462]
[1763953366462,0.002,2846.5,2846.4,11.37512962]
[1763953367045,0.002,2846.5,2846.4,9.49716562]
[1763953367250,0.002,2846.5,2846.4,4.90567462]
[1763953368165,0.002,2846.5,2846.4,7.98641326]
[1763953368329,0.002,2846.5,2846.4,5.81266726]
[1763953369352,0.002,2846.5,2846.4,7.63054026]
[1763953369554,0.002,2846.5,2846.4,7.85554026]
[1763953369864,0.002,2846.5,2846.4,10.07966726]
[1763953370065,0.002,2846.8,2846.5,0.90699264]
[1763953370257,0.002,2846.8,2846.7,6.153646]
[1763953370456,0.002,2846.8,2846.7,6.489846]
[1763953370770,0.002,2846.8,2846.7,6.587546]
[1763953371063,0.002,2846.8,2846.7,8.34635442]
[1763953371663,0.002,2846.8,2846.7,4.28523942]
[1763953371862,0.002,2846.8,2846.7,5.13398941]
[1763953372165,0.002,2846.8,2846.7,7.65784842]
[1763953372354,0.002,2846.8,2846.7,4.51023942]
[1763953372565,0.002,2846.8,2846.7,4.17403942]
[1763953372972,0.002,2846.8,2846.7,4.51023942]
[1763953373763,0.002,2846.8,2846.7,6.89578542]
[1763953374086,0.002,2846.8,2846.7,5.55111322]
[1763953374591,0.002,2846.8,2846.7,6.45810586]
[1763953375189,0.002,2846.8,2846.7,5.32611322]
[1763953375391,0.002,2846.8,2846.7,5.55111322]
[1763953376331,0.002,2846.8,2846.7,8.66685186]
[1763953376465,0.002,2846.8,2846.7,8.48557886]
[1763953377084,0.002,2846.8,2846.7,6.45810586]
[1763953378186,0.002,2846.8,2846.7,0.1]
[1763953378363,0.9692,2846.8,2846.7,0.1]
[1763953378976,0.9692,2846.8,2846.5,0.001]
[1763953379172,0.4752,2846.6,2846.5,0.101]
[1763953379604,0.9538,2846.6,2846.5,0.101]
[1763953379965,0.9538,2846.6,2846.5,0.001]
[1763953380192,0.93939761,2846.6,2846.5,0.101]
[1763953380620,0.002,2846.8,2846.7,0.1]
[1763953381425,0.4906,2846.8,2846.7,0.1]
[1763953381732,0.002,2846.8,2846.7,0.1]
[1763953381929,0.002,2846.8,2846.7,0.4838934]
[1763953383535,0.002,2846.8,2846.7,4.34733282]
[1763953383896,0.002,2846.8,2846.7,4.69793282]
[1763953384729,0.002,2846.8,2846.7,7.17535282]
[1763953385331,0.002,2846.8,2846.7,15.87148446]
[1763953385549,0.002,2846.8,2846.7,15.60317246]
[1763953385695,0.002,2846.8,2846.7,5.82992546]
[1763953386101,0.002,2846.8,2846.7,8.27145646]
[1763953386330,0.002,2846.8,2846.7,8.82634546]
[1763953386595,0.002,2846.8,2846.7,7.87945646]
[1763953386801,0.002,2846.8,2846.7,5.82992546]
[1763953387031,0.002,2846.8,2846.7,9.09181446]
[1763953387530,0.002,2846.8,2846.7,9.87071446]
[1763953387738,0.002,2846.8,2846.7,8.80958946]
[1763953387938,0.002,2846.8,2846.7,4.34733282]
[1763953388141,0.002,2846.8,2846.7,3.83783942]
[1763953388510,0.002,2846.8,2846.7,4.18843942]
[1763953389137,0.002,2846.8,2846.7,7.96138542]
[1763953389535,0.002,2846.8,2846.7,3.61283942]
[1763953389733,0.002,2846.8,2846.7,3.83783942]
[1763953389942,0.002,2846.8,2846.7,4.5730186]
[1763953391257,0.002,2846.8,2846.7,0.83517918]
[1763953391554,0.002,2846.8,2846.7,3.83783942]
[1763953392050,0.002,2846.8,2846.7,4.18843942]
[1763953393248,0.002,2846.8,2846.7,5.09543206]
[1763953394151,0.002,2846.8,2846.7,8.27303206]
[1763953394350,0.002,2846.8,2846.7,5.44603206]
[1763953394648,0.002,2846.8,2846.7,6.34203027]
[1763953395035,0.002,2846.8,2846.7,5.99143027]
[1763953395240,0.002,2846.8,2846.7,10.16745027]
[1763953395440,0.002,2846.8,2846.7,9.15066427]
[1763953396344,0.1883,2848.5,2846.7,35.97821427]
[1763953396539,0.1883,2848.5,2848.4,0.1]
[1763953397139,0.6871,2848.5,2848.4,0.1]
[1763953397334,1.184,2848.5,2848.3,0.225]
[1763953397524,0.9275,2848.4,2848.3,0.325]
[1763953397921,0.4306,2848.4,2848.3,0.325]
[1763953398159,0.1883,2848.5,2848.4,0.1]
[1763953398660,1.184,2848.5,2848.4,0.1]
[1763953400173,0.6871,2848.5,2848.4,0.1]
[1763953400458,0.1964,2848.7,2848.6,0.1]
[1763953400660,0.4988,2848.4,2847.2,1.25759264]
[1763953400862,0.4969,2848.6,2848.4,0.1]
[1763953401025,0.4969,2848.6,2848.5,0.1]
[1763953401225,0.4969,2848.6,2848.4,0.1]
[1763953401426,0.6952,2847.8,2847.0,7.02493852]
[1763953401627,0.6952,2847.8,2847.1,0.74593385]
[1763953401827,0.4969,2847.7,2847.4,0.1]
[1763953402041,0.4988,2847.5,2847.1,0.325]
[1763953402236,0.4988,2847.5,2847.2,0.1]
[1763953402464,0.1964,2847.8,2847.2,0.1]
[1763953402465,0.4225,2847.3,2847.2,0.1]
[1763953403057,0.4969,2847.7,2847.0,3.73744836]
[1763953403269,0.1964,2847.8,2847.7,0.1]
[1763953403446,1.1921,2847.8,2847.7,0.1]
[1763953404379,0.4969,2848.1,2848.0,0.1]
[1763953404751,0.9957,2848.1,2848.0,0.1]
[1763953405082,0.9957,2848.1,2847.7,0.324]
[1763953405379,0.4969,2848.0,2847.7,0.1]
[1763953405582,0.6952,2847.8,2847.7,0.1]
[1763953405945,1.1921,2847.8,2847.7,0.1]
[1763953406144,1.1921,2847.8,2847.4,0.1]
[1763953406384,0.4969,2847.7,2847.4,0.1]
[1763953406560,0.4988,2847.5,2847.4,0.1]
[1763953407099,0.9957,2847.5,2847.4,0.1]
[1763953408386,0.4988,2847.5,2847.0,0.224]
[1763953408562,0.6933,2847.8,2847.4,0.1]
[1763953408762,0.6933,2847.8,2847.1,0.0838]
[1763953408962,0.6933,2847.8,2847.7,0.1]
[1763953409473,1.1921,2847.8,2847.7,0.1]
[1763953410517,0.6952,2847.8,2847.7,0.1]
[1763953410717,0.4969,2848.2,2848.1,0.1]
[1763953410933,0.4969,2848.6,2848.5,0.1]
[1763953411380,0.9957,2848.6,2848.5,0.1]
[1763953411579,0.4969,2848.9,2847.8,0.5746]
[1763953411810,0.4969,2848.9,2848.8,0.1]
[1763953412319,0.9957,2848.9,2848.8,0.1]
[1763953414891,0.9957,2848.9,2846.8,0.001]
[1763953414892,0.9957,2848.9,2848.5,0.1]
[1763953415212,0.9957,2848.9,2847.8,0.90699264]
[1763953415213,0.4969,2848.8,2848.7,0.1]
[1763953415419,0.1954,2849.0,2848.2,0.224]
[1763953415590,0.1954,2849.0,2848.6,0.1]
[1763953415792,0.04387658,2848.9,2847.6,3.51170773]
[1763953415993,0.4969,2848.9,2848.1,0.1]
[1763953416503,0.4988,2848.2,2848.1,0.1]
[1763953416710,0.4969,2848.9,2847.5,0.224]
[1763953416711,0.4969,2848.9,2848.3,0.1]
[1763953416910,0.4969,2848.9,2848.6,0.1]
[1763953417216,0.4743,2848.7,2848.6,0.1]
[1763953417604,0.9445,2848.7,2848.6,0.1]
[1763953418622,0.1964,2850.2,2848.6,0.3506]
[1763953418623,0.4702,2849.5,2848.6,0.3506]
[1763953418832,0.63504813,2850.0,2848.8,0.1]
[1763953418833,0.1952,2848.9,2848.8,0.1]
[1763953418984,1.1397,2848.9,2848.8,0.1]
[1763953419184,0.1952,2848.9,2848.8,0.1]
[1763953419593,1.1397,2848.9,2848.7,0.1]
[1763953419802,0.6695,2848.9,2848.8,0.1]
[1763953420119,0.4702,2849.3,2849.2,0.1]
[1763953420613,0.9445,2849.3,2849.2,0.1]
[1763953421016,0.9445,2849.3,2848.9,0.1]
[1763953421198,0.04386118,2849.9,2848.6,0.1]
[1763953421199,0.4735,2849.0,2848.6,0.1]
[1763953421433,0.4702,2849.2,2848.5,0.1]
[1763953421434,0.6695,2848.7,2848.5,0.1]
[1763953421703,0.6695,2848.7,2848.0,0.225]
[1763953421704,0.6695,2848.7,2848.2,0.1]
[1763953421907,0.4702,2848.6,2848.2,0.1]
[1763953422084,0.4735,2848.3,2848.2,0.1]
[1763953422484,0.9437,2848.3,2848.2,0.1]
[1763953423791,0.9437,2848.3,2847.8,0.1]
[1763953423992,0.4973,2848.2,2847.8,0.1]
[1763953424212,0.6385,2847.9,2847.8,0.1]
[1763953424890,0.1911,2847.9,2847.8,0.1]
[1763953425442,0.4973,2848.6,2848.4,0.1]
[1763953425607,0.4973,2848.6,2848.2,0.1]
[1763953426011,0.4964,2848.3,2848.2,0.1]
[1763953427052,0.9937,2848.3,2848.2,0.1]
[1763953427560,0.4973,2848.6,2847.7,3.51157943]
[1763953427733,0.4973,2848.6,2848.5,0.1]
[1763953428142,0.9937,2848.6,2848.5,0.1]
[1763953429752,0.4964,2848.6,2848.5,0.1]
[1763953429958,0.9937,2848.6,2848.5,0.1]
[1763953430248,0.9937,2848.6,2848.4,0.1]
[1763953430550,0.4964,2848.6,2848.4,0.1]
[1763953430728,0.4973,2848.5,2848.4,0.1]
[1763953430923,0.4964,2848.5,2848.4,0.1]
[1763953431146,0.9937,2848.5,2848.4,0.1]
[1763953432036,0.9937,2848.5,2848.3,0.1]
[1763953432222,0.4973,2848.4,2848.1,0.1]
[1763953432662,0.04388582,2848.3,2848.1,0.1]
[1763953432882,0.4172,2848.2,2848.1,0.1]
[1763953433384,0.4973,2848.6,2848.4,0.1]
[1763953433685,0.4964,2848.5,2848.4,0.1]
[1763953434054,0.9937,2848.5,2848.4,0.1]
[1763953434380,0.1972,2848.7,2847.8,3.73645508]
[1763953434582,0.1972,2848.7,2848.6,0.4636]
[1763953434583,0.002,2848.7,2848.6,0.4636]
[1763953435943,0.002,2848.7,2848.6,0.1]
[1763953436350,0.002,2848.7,2848.6,0.4636]
[1763953437946,0.002,2848.7,2848.6,0.324]
[1763953438649,0.002,2848.7,2848.6,0.6876]
[1763953438849,0.002,2848.7,2848.6,1.10742874]